[Event "Early-Titled-Tuesday-Blitz-January-16-2024"]
[Site "Chess.com"]
[Date "2024.01.16"]
[Round "4"]
[White "ContrVersia"]
[Black "AldokhinIvan"]
[Result "1-0"]
[WhiteElo "2832"]
[BlackElo "2597"]
[TimeControl "180+1"]
[EndTime "8:39:34 PST"]
[Termination "ContrVersia won by resignation"]

1. b3 {[%clk 0:03:00.9]} 1... d5 {[%clk 0:02:59.5]} 2. Bb2 {[%clk 0:03:01.1]}
2... Nc6 {[%clk 0:03:00.1]} 3. g3 {[%clk 0:02:59.8]} 3... e5 {[%clk 0:03:00.2]}
4. Bg2 {[%clk 0:02:59.9]} 4... Nf6 {[%clk 0:03:00.7]} 5. e3 {[%clk 0:02:58.5]}
5... Bd6 {[%clk 0:02:57.5]} 6. d3 {[%clk 0:02:58.5]} 6... h5 {[%clk 0:02:55]} 7.
h3 {[%clk 0:02:58.3]} 7... Qe7 {[%clk 0:02:54.9]} 8. Ne2 {[%clk 0:02:58.4]} 8...
Bd7 {[%clk 0:02:50.1]} 9. a3 {[%clk 0:02:58.2]} 9... O-O-O {[%clk 0:02:49]} 10.
Nd2 {[%clk 0:02:58.3]} 10... a6 {[%clk 0:02:34]} 11. b4 {[%clk 0:02:58.3]} 11...
Kb8 {[%clk 0:02:26.2]} 12. c4 {[%clk 0:02:58.2]} 12... dxc4 {[%clk 0:02:13.5]}
13. Nxc4 {[%clk 0:02:59.1]} 13... Na7 {[%clk 0:01:56.7]} 14. Qc2 {[%clk
0:02:53.7]} 14... Bc6 {[%clk 0:01:50.6]} 15. e4 {[%clk 0:02:53.9]} 15... Bd7
{[%clk 0:01:39.2]} 16. d4 {[%clk 0:02:40.4]} 16... exd4 {[%clk 0:01:33.1]} 17.
Nxd4 {[%clk 0:02:41.3]} 17... Nc6 {[%clk 0:01:01.9]} 18. Nxd6 {[%clk 0:02:27.4]}
18... Nxd4 {[%clk 0:00:47.9]} 19. Bxd4 {[%clk 0:02:28.3]} 19... cxd6 {[%clk
0:00:43.4]} 20. O-O {[%clk 0:02:25.2]} 20... Rc8 {[%clk 0:00:43.7]} 21. Qb2
{[%clk 0:02:24.4]} 21... h4 {[%clk 0:00:35.2]} 22. g4 {[%clk 0:02:24.5]} 22...
Nxg4 {[%clk 0:00:24.9]} 23. hxg4 {[%clk 0:02:21.8]} 23... h3 {[%clk 0:00:24.7]}
24. Bf3 {[%clk 0:02:21.9]} 24... Qh4 {[%clk 0:00:19.7]} 25. Qe2 {[%clk
0:02:19.8]} 25... Bb5 {[%clk 0:00:15.6]} 26. Qe3 {[%clk 0:02:17.2]} 26... h2+
{[%clk 0:00:15.4]} 27. Kh1 {[%clk 0:02:17.3]} 27... Bxf1 {[%clk 0:00:15.9]} 28.
Rxf1 {[%clk 0:02:18]} 28... Qe7 {[%clk 0:00:14.8]} 29. e5 {[%clk 0:02:13.6]}
29... dxe5 {[%clk 0:00:10.9]} 30. Qxe5+ {[%clk 0:02:14.5]} 30... Qxe5 {[%clk
0:00:10.7]} 31. Bxe5+ {[%clk 0:02:15.4]} 31... Ka8 {[%clk 0:00:11.3]} 32. Bxg7
{[%clk 0:02:16.3]} 32... Rh7 {[%clk 0:00:07.9]} 33. Be5 {[%clk 0:02:15.5]} 33...
Rc2 {[%clk 0:00:05.4]} 34. Be4 {[%clk 0:02:03.3]} 34... Re2 {[%clk 0:00:05.1]}
35. Bxh7 {[%clk 0:02:02.9]} 35... Rxe5 {[%clk 0:00:05.5]} 36. Kxh2 {[%clk
0:02:03.3]} 1-0

[Event "Early-Titled-Tuesday-Blitz-January-16-2024"]
[Site "Chess.com"]
[Date "2024.01.16"]
[Round "4"]
[White "Andrey_Klymchuk"]
[Black "YurasovMat-2012"]
[Result "1-0"]
[WhiteElo "2803"]
[BlackElo "2587"]
[TimeControl "180+1"]
[EndTime "8:39:36 PST"]
[Termination "Andrey_Klymchuk won by resignation"]

1. e4 {[%clk 0:03:00.9]} 1... e5 {[%clk 0:02:27.6]} 2. Nf3 {[%clk 0:02:59.4]}
2... Nf6 {[%clk 0:02:27.8]} 3. Nxe5 {[%clk 0:02:58.8]} 3... d6 {[%clk
0:02:27.3]} 4. Nf3 {[%clk 0:02:58.9]} 4... Nxe4 {[%clk 0:02:27.4]} 5. Nc3 {[%clk
0:02:59.5]} 5... Nxc3 {[%clk 0:02:26.3]} 6. dxc3 {[%clk 0:03:00.4]} 6... Be7
{[%clk 0:02:25.3]} 7. Be3 {[%clk 0:03:00.4]} 7... Nd7 {[%clk 0:02:26.2]} 8. Qd2
{[%clk 0:03:00.7]} 8... Nf6 {[%clk 0:02:27.1]} 9. O-O-O {[%clk 0:03:00.6]} 9...
O-O {[%clk 0:02:27.7]} 10. Bd3 {[%clk 0:02:59.7]} 10... c5 {[%clk 0:02:28]} 11.
c4 {[%clk 0:02:56.8]} 11... Be6 {[%clk 0:02:24.4]} 12. Ng5 {[%clk 0:02:56.5]}
12... Bg4 {[%clk 0:02:24.4]} 13. f3 {[%clk 0:02:56.1]} 13... Bh5 {[%clk
0:02:24.6]} 14. g4 {[%clk 0:02:49.8]} 14... Bg6 {[%clk 0:02:24.3]} 15. h4 {[%clk
0:02:49.7]} 15... d5 {[%clk 0:02:20.1]} 16. Bxg6 {[%clk 0:02:45.6]} 16... hxg6
{[%clk 0:02:16.8]} 17. cxd5 {[%clk 0:02:45.1]} 17... Bd6 {[%clk 0:02:16.4]} 18.
Qd3 {[%clk 0:02:31.5]} 18... Re8 {[%clk 0:02:14.3]} 19. Kb1 {[%clk 0:02:28.8]}
19... c4 {[%clk 0:02:12.3]} 20. Qd2 {[%clk 0:02:23.6]} 20... Rc8 {[%clk
0:02:07.9]} 21. c3 {[%clk 0:02:15.7]} 21... Qc7 {[%clk 0:02:07.7]} 22. h5 {[%clk
0:02:08.8]} 22... Rxe3 {[%clk 0:02:06.4]} 23. Qxe3 {[%clk 0:02:00.9]} 23... Bf4
{[%clk 0:02:03.8]} 24. d6 {[%clk 0:02:01]} 24... Qxd6 {[%clk 0:01:37.1]} 25.
Rxd6 {[%clk 0:01:51.6]} 25... Bxe3 {[%clk 0:01:37.1]} 26. Ne4 {[%clk 0:01:49.4]}
26... Nxe4 {[%clk 0:01:36.7]} 27. fxe4 {[%clk 0:01:50.3]} 27... Re8 {[%clk
0:01:36.7]} 28. hxg6 {[%clk 0:01:50.1]} 28... fxg6 {[%clk 0:01:34.1]} 29. Re1
{[%clk 0:01:46.3]} 29... Rxe4 {[%clk 0:01:34.1]} 30. a4 {[%clk 0:01:43.2]} 30...
Re7 {[%clk 0:01:28.1]} 31. Re2 {[%clk 0:01:37.7]} 31... Kf7 {[%clk 0:01:21.9]}
32. a5 {[%clk 0:01:37]} 32... b6 {[%clk 0:01:04.1]} 33. a6 {[%clk 0:01:35.9]}
33... g5 {[%clk 0:00:58.1]} 34. Kc2 {[%clk 0:01:32.3]} 34... Ke8 {[%clk
0:00:54.3]} 35. Rc6 {[%clk 0:01:26.2]} 35... b5 {[%clk 0:00:51.6]} 36. Rd6
{[%clk 0:01:24.9]} 36... Re5 {[%clk 0:00:44]} 37. Rd1 {[%clk 0:01:24.1]} 1-0

[Event "Early-Titled-Tuesday-Blitz-January-16-2024"]
[Site "Chess.com"]
[Date "2024.01.16"]
[Round "4"]
[White "SHIVACalypso"]
[Black "TregubovP"]
[Result "0-1"]
[WhiteElo "2466"]
[BlackElo "2679"]
[TimeControl "180+1"]
[EndTime "8:39:36 PST"]
[Termination "TregubovP won by resignation"]

1. Nf3 {[%clk 0:03:00.9]} 1... c5 {[%clk 0:02:57.6]} 2. c4 {[%clk 0:02:59.4]}
2... Nf6 {[%clk 0:02:52.5]} 3. Nc3 {[%clk 0:02:59.8]} 3... Nc6 {[%clk
0:02:52.1]} 4. d4 {[%clk 0:02:59.7]} 4... cxd4 {[%clk 0:02:52.6]} 5. Nxd4 {[%clk
0:02:59.9]} 5... Qb6 {[%clk 0:02:53.3]} 6. e3 {[%clk 0:02:55.2]} 6... e6 {[%clk
0:02:51.6]} 7. Be2 {[%clk 0:02:40]} 7... Bb4 {[%clk 0:02:51]} 8. O-O {[%clk
0:02:37.5]} 8... O-O {[%clk 0:02:50.5]} 9. Na4 {[%clk 0:02:30.6]} 9... Qd8
{[%clk 0:02:34.4]} 10. a3 {[%clk 0:02:31]} 10... Be7 {[%clk 0:02:34.1]} 11. b4
{[%clk 0:02:26]} 11... d5 {[%clk 0:02:34.1]} 12. Bb2 {[%clk 0:02:17.1]} 12...
dxc4 {[%clk 0:02:17.9]} 13. Bxc4 {[%clk 0:02:15.7]} 13... Bd7 {[%clk 0:02:18.5]}
14. Nc5 {[%clk 0:02:11.7]} 14... Bxc5 {[%clk 0:02:18.3]} 15. bxc5 {[%clk
0:02:12.6]} 15... Qe7 {[%clk 0:02:14.4]} 16. Rc1 {[%clk 0:02:10.1]} 16... Rac8
{[%clk 0:02:12.6]} 17. Bb5 {[%clk 0:02:04.3]} 17... Rfd8 {[%clk 0:02:08.4]} 18.
Nxc6 {[%clk 0:01:55]} 18... Bxc6 {[%clk 0:02:07.6]} 19. Qa4 {[%clk 0:01:55.1]}
19... Bxb5 {[%clk 0:01:58.3]} 20. Bxf6 {[%clk 0:01:46.3]} 20... Bxa4 {[%clk
0:01:45.8]} 21. Bxe7 {[%clk 0:01:46]} 21... Rd3 {[%clk 0:01:45.9]} 22. Rb1
{[%clk 0:01:38.4]} 22... Bc6 {[%clk 0:01:43.4]} 23. a4 {[%clk 0:01:30.1]} 23...
Ra3 {[%clk 0:01:31.8]} 24. Ra1 {[%clk 0:01:26.2]} 24... Rxa4 {[%clk 0:01:12.9]}
25. Rxa4 {[%clk 0:01:25.6]} 25... Bxa4 {[%clk 0:01:13.6]} 26. Ra1 {[%clk
0:01:25.4]} 26... b5 {[%clk 0:01:14.1]} 27. Kf1 {[%clk 0:01:12]} 27... f6 {[%clk
0:01:05.8]} 28. Ke2 {[%clk 0:01:10.8]} 28... Kf7 {[%clk 0:01:05.9]} 29. Bd6
{[%clk 0:01:10.9]} 29... Ke8 {[%clk 0:00:59.2]} 30. Kd2 {[%clk 0:01:10.9]} 30...
Kd7 {[%clk 0:00:58.9]} 31. Kc3 {[%clk 0:01:11.5]} 31... a5 {[%clk 0:00:58.9]}
32. Rd1 {[%clk 0:01:06.6]} 32... Kc6 {[%clk 0:00:59]} 33. Be7 {[%clk 0:01:04.2]}
33... Bxd1 {[%clk 0:00:57.2]} 0-1

[Event "Early-Titled-Tuesday-Blitz-January-16-2024"]
[Site "Chess.com"]
[Date "2024.01.16"]
[Round "4"]
[White "Ural_bogatyr"]
[Black "kidagent"]
[Result "0-1"]
[WhiteElo "2549"]
[BlackElo "2277"]
[TimeControl "180+1"]
[EndTime "8:39:40 PST"]
[Termination "kidagent won by checkmate"]

1. d4 {[%clk 0:03:00.9]} 1... d5 {[%clk 0:02:59.5]} 2. Nc3 {[%clk 0:02:59]} 2...
Nf6 {[%clk 0:02:56.3]} 3. Bf4 {[%clk 0:02:59.6]} 3... c6 {[%clk 0:02:50.9]} 4.
e3 {[%clk 0:02:59.7]} 4... e6 {[%clk 0:02:49.2]} 5. Nf3 {[%clk 0:02:57.1]} 5...
Bd6 {[%clk 0:02:46.1]} 6. Ne5 {[%clk 0:02:57.5]} 6... O-O {[%clk 0:02:43.2]} 7.
h4 {[%clk 0:02:55.1]} 7... Ne8 {[%clk 0:02:40.8]} 8. h5 {[%clk 0:02:53.8]} 8...
f6 {[%clk 0:02:40.9]} 9. Nd3 {[%clk 0:02:53.4]} 9... Bxf4 {[%clk 0:02:39.9]} 10.
Nxf4 {[%clk 0:02:53.7]} 10... e5 {[%clk 0:02:39.1]} 11. Nd3 {[%clk 0:02:52.7]}
11... Nd7 {[%clk 0:02:35.2]} 12. Be2 {[%clk 0:02:52.4]} 12... Nd6 {[%clk
0:02:32.9]} 13. Bg4 {[%clk 0:02:48.6]} 13... Qe7 {[%clk 0:02:26.8]} 14. Qe2
{[%clk 0:02:46.3]} 14... f5 {[%clk 0:02:10.7]} 15. Bh3 {[%clk 0:02:45.6]} 15...
e4 {[%clk 0:02:07.3]} 16. Nf4 {[%clk 0:02:43.2]} 16... Nf6 {[%clk 0:02:02.4]}
17. O-O-O {[%clk 0:02:42.2]} 17... b5 {[%clk 0:02:01.1]} 18. Rdg1 {[%clk
0:02:38.7]} 18... b4 {[%clk 0:01:55.4]} 19. Na4 {[%clk 0:02:37.6]} 19... Ng4
{[%clk 0:01:52.9]} 20. Nc5 {[%clk 0:02:33.6]} 20... a5 {[%clk 0:01:50.6]} 21. f3
{[%clk 0:02:23.9]} 21... exf3 {[%clk 0:01:43.2]} 22. gxf3 {[%clk 0:02:24.8]}
22... Nxe3 {[%clk 0:01:32.7]} 23. Re1 {[%clk 0:02:18.8]} 23... Re8 {[%clk
0:01:32.4]} 24. Rhg1 {[%clk 0:02:17.4]} 24... Ra7 {[%clk 0:01:22.5]} 25. Qf2
{[%clk 0:02:16.4]} 25... Ndc4 {[%clk 0:01:17.3]} 26. b3 {[%clk 0:02:14.3]} 26...
Na3 {[%clk 0:01:11.8]} 27. Nfe6 {[%clk 0:01:45.7]} 27... f4 {[%clk 0:00:56.7]}
28. Rxg7+ {[%clk 0:01:39.3]} 28... Qxg7 {[%clk 0:00:56.6]} 29. Nxg7 {[%clk
0:01:40.2]} 29... Rxg7 {[%clk 0:00:55.9]} 30. Bxc8 {[%clk 0:01:37.9]} 30... Rxc8
{[%clk 0:00:56.8]} 31. Qh4 {[%clk 0:01:35]} 31... Rg2 {[%clk 0:00:51.8]} 32.
Rxe3 {[%clk 0:01:33]} 32... fxe3 {[%clk 0:00:47.4]} 33. Qf6 {[%clk 0:01:11.7]}
33... Rg1+ {[%clk 0:00:46.4]} 34. Kb2 {[%clk 0:01:09.3]} 34... Rb1# {[%clk
0:00:47]} 0-1

[Event "Early-Titled-Tuesday-Blitz-January-16-2024"]
[Site "Chess.com"]
[Date "2024.01.16"]
[Round "4"]
[White "eCztery"]
[Black "PawnEatingZombie"]
[Result "1-0"]
[WhiteElo "2461"]
[BlackElo "2138"]
[TimeControl "180+1"]
[EndTime "8:39:40 PST"]
[Termination "eCztery won by resignation"]

1. e4 {[%clk 0:03:00.9]} 1... e6 {[%clk 0:03:00]} 2. d4 {[%clk 0:02:56.2]} 2...
d5 {[%clk 0:03:00.2]} 3. exd5 {[%clk 0:02:56.1]} 3... exd5 {[%clk 0:03:00.1]} 4.
Nf3 {[%clk 0:02:56.9]} 4... Nf6 {[%clk 0:03:00.3]} 5. Bd3 {[%clk 0:02:53.5]}
5... c5 {[%clk 0:02:57.1]} 6. O-O {[%clk 0:02:48.4]} 6... cxd4 {[%clk
0:02:54.6]} 7. Nxd4 {[%clk 0:02:45.6]} 7... Be7 {[%clk 0:02:54.7]} 8. Nf5 {[%clk
0:02:43.9]} 8... Bxf5 {[%clk 0:02:53.2]} 9. Bxf5 {[%clk 0:02:43.7]} 9... Nc6
{[%clk 0:02:53.1]} 10. Bg5 {[%clk 0:02:38.6]} 10... O-O {[%clk 0:02:52.8]} 11.
Nc3 {[%clk 0:02:37]} 11... d4 {[%clk 0:02:45.9]} 12. Ne2 {[%clk 0:02:36.3]}
12... h6 {[%clk 0:02:42.9]} 13. Bh4 {[%clk 0:02:32.9]} 13... Qd5 {[%clk
0:02:34.1]} 14. Ng3 {[%clk 0:02:30.4]} 14... Rfe8 {[%clk 0:02:22.2]} 15. Re1
{[%clk 0:02:19]} 15... g5 {[%clk 0:02:20.3]} 16. Bxg5 {[%clk 0:01:32.3]} 16...
hxg5 {[%clk 0:02:18.6]} 17. Qd2 {[%clk 0:01:33.2]} 17... Bf8 {[%clk 0:01:32.7]}
18. Qxg5+ {[%clk 0:01:29.6]} 18... Bg7 {[%clk 0:01:33.2]} 19. Nh5 {[%clk
0:01:26.6]} 19... Nxh5 {[%clk 0:01:26.7]} 20. Bh7+ {[%clk 0:01:20.8]} 20... Kxh7
{[%clk 0:01:27.1]} 21. Qxd5 {[%clk 0:01:20.4]} 21... Nf6 {[%clk 0:01:27]} 22.
Qxf7 {[%clk 0:01:18]} 22... Rxe1+ {[%clk 0:01:09]} 23. Rxe1 {[%clk 0:01:18.9]}
23... d3 {[%clk 0:00:30.4]} 24. cxd3 {[%clk 0:01:13.7]} 24... Nd4 {[%clk
0:00:28.7]} 25. Re3 {[%clk 0:01:08.5]} 25... Rc8 {[%clk 0:00:27.4]} 26. Rh3+
{[%clk 0:01:06.2]} 1-0

[Event "Early-Titled-Tuesday-Blitz-January-16-2024"]
[Site "Chess.com"]
[Date "2024.01.16"]
[Round "4"]
[White "Sanan_Sjugirov"]
[Black "Let_it_be_1"]
[Result "1-0"]
[WhiteElo "2959"]
[BlackElo "2613"]
[TimeControl "180+1"]
[EndTime "8:39:42 PST"]
[Termination "Sanan_Sjugirov won by resignation"]

1. e4 {[%clk 0:03:00.9]} 1... e6 {[%clk 0:03:00.1]} 2. d4 {[%clk 0:03:00.9]}
2... d5 {[%clk 0:03:00.3]} 3. Nc3 {[%clk 0:03:00.6]} 3... Nf6 {[%clk 0:03:00.3]}
4. e5 {[%clk 0:03:00.8]} 4... Ne4 {[%clk 0:03:00.3]} 5. Nxe4 {[%clk 0:02:53.7]}
5... dxe4 {[%clk 0:03:01.2]} 6. Bc4 {[%clk 0:02:54.2]} 6... a6 {[%clk
0:03:00.4]} 7. a4 {[%clk 0:02:40.9]} 7... b6 {[%clk 0:02:59.8]} 8. Ne2 {[%clk
0:02:38.1]} 8... Bb7 {[%clk 0:02:59.6]} 9. Be3 {[%clk 0:02:23.9]} 9... c5 {[%clk
0:02:58.7]} 10. dxc5 {[%clk 0:02:23.8]} 10... Qc7 {[%clk 0:02:48]} 11. b4 {[%clk
0:02:01.3]} 11... bxc5 {[%clk 0:02:46.6]} 12. b5 {[%clk 0:02:01.9]} 12... Nd7
{[%clk 0:02:42.7]} 13. bxa6 {[%clk 0:02:01.8]} 13... Bxa6 {[%clk 0:02:41.4]} 14.
Bxa6 {[%clk 0:02:02.7]} 14... Rxa6 {[%clk 0:02:41.6]} 15. O-O {[%clk 0:01:59.5]}
15... Qxe5 {[%clk 0:02:25]} 16. Bf4 {[%clk 0:01:57.3]} 16... Qf5 {[%clk
0:02:12.9]} 17. Rb1 {[%clk 0:01:49.7]} 17... e5 {[%clk 0:02:09.8]} 18. Be3
{[%clk 0:01:42.2]} 18... Be7 {[%clk 0:01:52.1]} 19. Ng3 {[%clk 0:01:30.5]} 19...
Qe6 {[%clk 0:01:51.7]} 20. Nxe4 {[%clk 0:01:28.3]} 20... Rxa4 {[%clk 0:01:48.5]}
21. Nc3 {[%clk 0:01:26.9]} 21... Rb4 {[%clk 0:01:30.8]} 22. Nd5 {[%clk
0:01:23.4]} 22... O-O {[%clk 0:01:15.7]} 23. Nxb4 {[%clk 0:01:23.5]} 23... cxb4
{[%clk 0:01:16]} 24. Qd2 {[%clk 0:01:17.6]} 24... Nf6 {[%clk 0:01:14]} 25. Qd3
{[%clk 0:01:10.1]} 25... Rd8 {[%clk 0:01:09.7]} 26. Qb3 {[%clk 0:01:09.9]} 26...
Qc6 {[%clk 0:01:02.1]} 27. Rfd1 {[%clk 0:01:10]} 27... Rc8 {[%clk 0:00:59.8]}
28. Ra1 {[%clk 0:01:08.9]} 28... Qxc2 {[%clk 0:00:41.2]} 29. Qxc2 {[%clk
0:01:08.6]} 29... Rxc2 {[%clk 0:00:41.2]} 30. Ra8+ {[%clk 0:01:09.1]} 1-0

[Event "Early-Titled-Tuesday-Blitz-January-16-2024"]
[Site "Chess.com"]
[Date "2024.01.16"]
[Round "4"]
[White "Perecke"]
[Black "Shivananda1964"]
[Result "1-0"]
[WhiteElo "2563"]
[BlackElo "2360"]
[TimeControl "180+1"]
[EndTime "8:39:50 PST"]
[Termination "Perecke won on time"]

1. e4 {[%clk 0:02:50.5]} 1... Nc6 {[%clk 0:02:59.4]} 2. Nf3 {[%clk 0:02:50.2]}
2... e5 {[%clk 0:02:58.9]} 3. Bb5 {[%clk 0:02:50.1]} 3... a6 {[%clk 0:02:59.2]}
4. Ba4 {[%clk 0:02:50.2]} 4... Nf6 {[%clk 0:02:59.4]} 5. O-O {[%clk 0:02:50.7]}
5... Be7 {[%clk 0:02:59.8]} 6. Re1 {[%clk 0:02:51]} 6... d6 {[%clk 0:03:00.4]}
7. c3 {[%clk 0:02:49]} 7... Bg4 {[%clk 0:03:00.7]} 8. h3 {[%clk 0:02:46.8]} 8...
Bh5 {[%clk 0:03:00.3]} 9. d4 {[%clk 0:02:39]} 9... b5 {[%clk 0:02:57.6]} 10. Bb3
{[%clk 0:02:36.9]} 10... Na5 {[%clk 0:02:22.1]} 11. dxe5 {[%clk 0:02:29.9]}
11... dxe5 {[%clk 0:02:10]} 12. Qxd8+ {[%clk 0:02:29.4]} 12... Rxd8 {[%clk
0:02:08.2]} 13. Nxe5 {[%clk 0:02:30.3]} 13... Nxe4 {[%clk 0:01:38.7]} 14. Bc2
{[%clk 0:01:54.7]} 14... Nd6 {[%clk 0:01:11.3]} 15. b4 {[%clk 0:01:51.6]} 15...
Nac4 {[%clk 0:01:04.8]} 16. Nc6 {[%clk 0:01:49.2]} 16... Rd7 {[%clk 0:01:05.2]}
17. Nd2 {[%clk 0:01:48.4]} 17... Nb6 {[%clk 0:00:49.9]} 18. Ne4 {[%clk
0:01:42.7]} 18... Nbc8 {[%clk 0:00:41]} 19. Nc5 {[%clk 0:01:40]} 19... Bg6
{[%clk 0:00:23.6]} 20. Bxg6 {[%clk 0:01:26.9]} 20... hxg6 {[%clk 0:00:23.6]} 21.
Nxd7 {[%clk 0:01:26.3]} 21... Kxd7 {[%clk 0:00:23.8]} 22. Ne5+ {[%clk
0:01:27.1]} 22... Ke8 {[%clk 0:00:17.3]} 23. Be3 {[%clk 0:01:27.2]} 23... Nf5
{[%clk 0:00:07.3]} 24. Bc5 {[%clk 0:01:26.2]} 24... Bxc5 {[%clk 0:00:04.8]} 25.
Nxg6+ {[%clk 0:01:24.2]} 25... Kd7 {[%clk 0:00:01.8]} 26. Nxh8 {[%clk 0:01:24]}
1-0

[Event "Early-Titled-Tuesday-Blitz-January-16-2024"]
[Site "Chess.com"]
[Date "2024.01.16"]
[Round "4"]
[White "stollenmonster"]
[Black "blitzking1729"]
[Result "1-0"]
[WhiteElo "2907"]
[BlackElo "2679"]
[TimeControl "180+1"]
[EndTime "8:39:52 PST"]
[Termination "stollenmonster won by resignation"]

1. e4 {[%clk 0:03:00.9]} 1... c5 {[%clk 0:02:56.8]} 2. Nf3 {[%clk 0:02:58.8]}
2... e6 {[%clk 0:02:56.8]} 3. Be2 {[%clk 0:02:58.8]} 3... a6 {[%clk 0:02:55.4]}
4. c4 {[%clk 0:02:59.2]} 4... Nc6 {[%clk 0:02:54.9]} 5. Nc3 {[%clk 0:02:57.4]}
5... Qc7 {[%clk 0:02:53.5]} 6. d4 {[%clk 0:02:56.4]} 6... cxd4 {[%clk
0:02:53.7]} 7. Nxd4 {[%clk 0:02:57.3]} 7... Nf6 {[%clk 0:02:53.7]} 8. O-O {[%clk
0:02:56.7]} 8... h5 {[%clk 0:02:50.3]} 9. h3 {[%clk 0:02:54.2]} 9... Bc5 {[%clk
0:02:47.7]} 10. Be3 {[%clk 0:02:54.1]} 10... d6 {[%clk 0:02:41.8]} 11. Rc1
{[%clk 0:02:51.5]} 11... Bd7 {[%clk 0:02:11.3]} 12. Qd2 {[%clk 0:02:40.5]} 12...
Bxd4 {[%clk 0:01:58.8]} 13. Bxd4 {[%clk 0:02:41.4]} 13... Nxd4 {[%clk
0:01:59.7]} 14. Qxd4 {[%clk 0:02:42.3]} 14... e5 {[%clk 0:01:59.4]} 15. Qd2
{[%clk 0:02:41.5]} 15... Bc6 {[%clk 0:01:50.2]} 16. Qg5 {[%clk 0:02:31.6]} 16...
O-O {[%clk 0:01:44.1]} 17. f4 {[%clk 0:01:47.1]} 17... Nxe4 {[%clk 0:01:22]} 18.
Nxe4 {[%clk 0:01:45.1]} 18... Bxe4 {[%clk 0:01:22.1]} 19. c5 {[%clk 0:01:37]}
19... dxc5 {[%clk 0:00:47.4]} 20. f5 {[%clk 0:01:35.6]} 20... Rfd8 {[%clk
0:00:04.6]} 21. Bc4 {[%clk 0:01:32.7]} 21... Kf8 {[%clk 0:00:02.9]} 22. f6
{[%clk 0:01:27.5]} 22... Bg6 {[%clk 0:00:02.4]} 23. fxg7+ {[%clk 0:01:27.5]}
23... Kxg7 {[%clk 0:00:03.3]} 24. Rxf7+ {[%clk 0:01:24.6]} 24... Qxf7 {[%clk
0:00:01.4]} 25. Bxf7 {[%clk 0:01:25.2]} 1-0

[Event "Early-Titled-Tuesday-Blitz-January-16-2024"]
[Site "Chess.com"]
[Date "2024.01.16"]
[Round "4"]
[White "leschebaza"]
[Black "CFN_Good_Evening"]
[Result "0-1"]
[WhiteElo "2413"]
[BlackElo "1880"]
[TimeControl "180+1"]
[EndTime "8:39:52 PST"]
[Termination "CFN_Good_Evening won by resignation"]

1. b3 {[%clk 0:03:00.9]} 1... Nf6 {[%clk 0:02:58.4]} 2. Bb2 {[%clk 0:03:01.8]}
2... g6 {[%clk 0:02:57.5]} 3. e4 {[%clk 0:03:01.3]} 3... Bg7 {[%clk 0:02:57.4]}
4. f4 {[%clk 0:03:01.3]} 4... d6 {[%clk 0:02:56.7]} 5. Nf3 {[%clk 0:03:00.7]}
5... O-O {[%clk 0:02:55.9]} 6. d3 {[%clk 0:03:01]} 6... Nc6 {[%clk 0:02:51.3]}
7. Nbd2 {[%clk 0:03:00.6]} 7... a5 {[%clk 0:02:46]} 8. a3 {[%clk 0:03:00]} 8...
Re8 {[%clk 0:02:37.5]} 9. Be2 {[%clk 0:02:58.5]} 9... e5 {[%clk 0:02:37.6]} 10.
fxe5 {[%clk 0:02:49.2]} 10... dxe5 {[%clk 0:02:38.3]} 11. O-O {[%clk 0:02:47]}
11... Nh5 {[%clk 0:02:31.5]} 12. Nc4 {[%clk 0:02:40.6]} 12... b5 {[%clk
0:02:26.5]} 13. Ne3 {[%clk 0:02:40]} 13... Nf4 {[%clk 0:02:26]} 14. g3 {[%clk
0:02:38.1]} 14... Nh3+ {[%clk 0:02:07.6]} 15. Kg2 {[%clk 0:02:32.8]} 15... Ng5
{[%clk 0:02:07.5]} 16. Nd5 {[%clk 0:02:26.9]} 16... Bh3+ {[%clk 0:01:48.7]} 17.
Kg1 {[%clk 0:02:26.4]} 17... Bxf1 {[%clk 0:01:49.6]} 18. Qxf1 {[%clk 0:02:20.6]}
18... Nxf3+ {[%clk 0:01:48.8]} 19. Qxf3 {[%clk 0:02:20.7]} 19... Nd4 {[%clk
0:01:40.9]} 20. Bxd4 {[%clk 0:02:07.4]} 20... exd4 {[%clk 0:01:40.2]} 21. Rf1
{[%clk 0:02:08.3]} 21... Rf8 {[%clk 0:01:29.7]} 22. h4 {[%clk 0:01:46.9]} 22...
c6 {[%clk 0:01:29.6]} 23. Nf4 {[%clk 0:01:46.8]} 23... Qd6 {[%clk 0:01:04.7]}
24. h5 {[%clk 0:01:44.1]} 24... g5 {[%clk 0:01:01.1]} 25. Nh3 {[%clk 0:01:32.7]}
25... h6 {[%clk 0:01:01.6]} 26. Nf2 {[%clk 0:01:25]} 26... Qxa3 {[%clk
0:00:51.2]} 27. Ng4 {[%clk 0:01:24.7]} 27... Qd6 {[%clk 0:00:49]} 28. Kg2 {[%clk
0:01:23.8]} 28... a4 {[%clk 0:00:45.1]} 29. bxa4 {[%clk 0:01:24.7]} 29... bxa4
{[%clk 0:00:45.1]} 30. Qf5 {[%clk 0:01:21.3]} 30... a3 {[%clk 0:00:40.8]} 31. e5
{[%clk 0:01:20.7]} 31... Qe6 {[%clk 0:00:34.8]} 32. Qe4 {[%clk 0:01:20.9]} 32...
a2 {[%clk 0:00:34.2]} 33. Nf6+ {[%clk 0:01:20.4]} 33... Bxf6 {[%clk 0:00:33.5]}
34. Rxf6 {[%clk 0:01:20.2]} 34... Qd5 {[%clk 0:00:34.1]} 0-1

[Event "Early-Titled-Tuesday-Blitz-January-16-2024"]
[Site "Chess.com"]
[Date "2024.01.16"]
[Round "4"]
[White "GMJustin"]
[Black "UnTucopalaTimba"]
[Result "1-0"]
[WhiteElo "2320"]
[BlackElo "2011"]
[TimeControl "180+1"]
[EndTime "8:39:53 PST"]
[Termination "GMJustin won by resignation"]

1. d4 {[%clk 0:02:38.9]} 1... Nf6 {[%clk 0:02:58]} 2. c4 {[%clk 0:02:38]} 2...
e6 {[%clk 0:02:57.8]} 3. Nf3 {[%clk 0:02:36.1]} 3... d5 {[%clk 0:02:56.4]} 4.
Nc3 {[%clk 0:02:35.2]} 4... Bb4 {[%clk 0:02:55.4]} 5. Qa4+ {[%clk 0:02:18.5]}
5... Nc6 {[%clk 0:02:53.8]} 6. Bg5 {[%clk 0:02:19.1]} 6... dxc4 {[%clk
0:02:49.6]} 7. e4 {[%clk 0:02:13.1]} 7... Bd7 {[%clk 0:02:48.5]} 8. Qd1 {[%clk
0:01:43.3]} 8... h6 {[%clk 0:02:14.7]} 9. Bxf6 {[%clk 0:01:43.1]} 9... Qxf6
{[%clk 0:02:13.9]} 10. Bxc4 {[%clk 0:01:39.2]} 10... O-O {[%clk 0:02:09.9]} 11.
O-O {[%clk 0:01:28.7]} 11... Bxc3 {[%clk 0:02:02.7]} 12. e5 {[%clk 0:01:22.5]}
12... Qg6 {[%clk 0:01:50.8]} 13. bxc3 {[%clk 0:01:22]} 13... Na5 {[%clk
0:01:35.4]} 14. Bd3 {[%clk 0:01:21.4]} 14... f5 {[%clk 0:01:34.1]} 15. exf6
{[%clk 0:01:17.5]} 15... Qxf6 {[%clk 0:01:32.8]} 16. Ne5 {[%clk 0:01:17.7]}
16... Be8 {[%clk 0:01:26.8]} 17. Qg4 {[%clk 0:01:16.2]} 17... c5 {[%clk
0:01:17.9]} 18. Rae1 {[%clk 0:00:57.9]} 18... cxd4 {[%clk 0:01:11.2]} 19. cxd4
{[%clk 0:00:57.9]} 19... Rd8 {[%clk 0:01:07.2]} 20. Re3 {[%clk 0:00:38.7]} 20...
b6 {[%clk 0:00:58.7]} 21. Rf3 {[%clk 0:00:37]} 21... Qe7 {[%clk 0:00:49.3]} 22.
Qe4 {[%clk 0:00:36.7]} 1-0